fUSD/lending_fUSD_20240223
["ID","MTS","AMOUNT","RATE_DAILY","PERIOD"]
[315004498,1708726257324,-377.09042742,0.00029178,2]
[315004499,1708726257334,-1721.96,0.00029178,2]
[315004500,1708726257343,-991.14,0.00029178,2]
[315004501,1708726257353,-500.0,0.00029178,2]
[315004502,1708726257362,-2187.47,0.00029178,2]
[315004503,1708726257371,-500.0,0.00029178,2]
[315004504,1708726257380,-1860.00836589,0.00029303,4]
[315004505,1708726257389,-500.0,0.00029315,2]
[315004506,1708726257398,-682.08,0.00029315,2]
[315004507,1708726257407,-3102.35,0.00029315,2]
[315004508,1708726257416,-500.0,0.00029315,2]
[315004509,1708726257425,-500.0,0.00029315,2]
[315004510,1708726257434,-500.0,0.00029315,2]
[315004511,1708726257443,-597.21,0.00029315,2]
[315004512,1708726257452,-500.0,0.00029315,2]
[315004513,1708726257461,-500.0,0.00029315,2]
[315004514,1708726257471,-500.0,0.00029315,2]
[315004515,1708726257480,-521.86,0.00029315,2]
[315004516,1708726257489,-500.0,0.00029315,2]
[315004517,1708726257498,-500.0,0.00029315,2]
[315004518,1708726257507,-552.29,0.00029315,2]
[315004519,1708726257517,-500.0,0.00029315,2]
[315004520,1708726257526,-584.56,0.00029315,2]
[315004521,1708726257535,-711.3,0.00029315,2]
[315004522,1708726257543,-500.0,0.00029315,2]
[315004523,1708726257553,-685.81,0.00029315,2]
[315004524,1708726257562,-1524.14,0.00029315,2]
[315004525,1708726257571,-830.74,0.00029315,2]
[315004526,1708726257581,-522.81,0.00029315,2]
[315004527,1708726257590,-649.95,0.00029315,2]
[315004528,1708726257599,-607.97,0.00029315,2]
[315004529,1708726257609,-2019.37,0.00029315,2]
[315004530,1708726257618,-1721.96,0.00029315,2]
[315004531,1708726257627,-991.14,0.00029315,2]
[315004532,1708726257637,-500.0,0.00029315,2]
[315004533,1708726257646,-2187.47,0.00029315,2]
[315004534,1708726257655,-240.0,0.00029339,2]
[315004535,1708726257665,-500.0,0.00029452,2]
[315004536,1708726257674,-682.08,0.00029452,2]
[315004537,1708726257683,-3102.35,0.00029452,2]
[315004538,1708726257692,-500.0,0.00029452,2]
[315004539,1708726257701,-500.0,0.00029452,2]
[315004540,1708726257710,-500.0,0.00029452,2]
[315004541,1708726257720,-597.21,0.00029452,2]
[315004542,1708726257729,-500.0,0.00029452,2]
[315004543,1708726257738,-500.0,0.00029452,2]
[315004544,1708726257748,-500.0,0.00029452,2]
[315004545,1708726257757,-521.86,0.00029452,2]
[315004546,1708726257766,-477.9,0.00029452,2]
[315004547,1708726257775,-500.0,0.00029452,2]
[315004548,1708726257784,-552.29,0.00029452,2]
[315004549,1708726257794,-500.0,0.00029452,2]
[315004550,1708726257803,-584.56,0.00029452,2]
[315004551,1708726257812,-711.3,0.00029452,2]
[315004552,1708726257821,-500.0,0.00029452,2]
[315004553,1708726257830,-685.81,0.00029452,2]
[315004554,1708726257840,-1524.14,0.00029452,2]
[315004555,1708726257849,-830.74,0.00029452,2]
[315004556,1708726257859,-522.81,0.00029452,2]
[315004557,1708726257868,-649.95,0.00029452,2]
[315004558,1708726257877,-607.97,0.00029452,2]
[315004559,1708726257886,-2019.37,0.00029452,2]
[315004560,1708726257895,-1721.96,0.00029452,2]
[315004561,1708726257905,-991.14,0.00029452,2]
[315004562,1708726257914,-500.0,0.00029452,2]
[315004563,1708726257923,-2187.47,0.00029452,2]
[315004564,1708726257932,-387.82,0.00029589,2]
[315004565,1708726257941,-682.08,0.00029589,2]
[315004566,1708726257951,-3102.35,0.00029589,2]
[315004567,1708726257960,-500.0,0.00029589,2]
[315004568,1708726257969,-500.0,0.00029589,2]
[315004569,1708726257978,-500.0,0.00029589,2]
[315004570,1708726257987,-597.21,0.00029589,2]
[315004571,1708726257997,-500.0,0.00029589,2]
[315004572,1708726258007,-500.0,0.00029589,2]
[315004573,1708726258016,-500.0,0.00029589,2]
[315004574,1708726258026,-521.86,0.00029589,2]
[315004575,1708726258035,-500.0,0.00029589,2]
[315004576,1708726258044,-552.29,0.00029589,2]
[315004577,1708726258053,-482.24130688,0.00029589,2]
[315004578,1708726258062,-584.56,0.00029589,2]
[315004579,1708726258071,-711.3,0.00029589,2]
[315004580,1708726258080,-259.59093901,0.00029589,2]
[315004581,1708726258091,-685.81,0.00029589,2]
[315004582,1708726258103,-1524.14,0.00029589,2]
[315004583,1708726258113,-830.74,0.00029589,2]
[315004584,1708726258122,-522.81,0.00029589,2]
[315004585,1708726258132,-649.95,0.00029589,2]
[315004586,1708726258141,-607.97,0.00029589,2]
[315004587,1708726258151,-2019.37,0.00029589,2]
[315004588,1708726258160,-1721.96,0.00029589,2]
[315004589,1708726258171,-991.14,0.00029589,2]
[315004590,1708726258180,-356.72,0.00029589,2]
[315004591,1708726258189,-2187.47,0.00029589,2]
[315004592,1708726258198,-760.0,0.00029715,2]
[315004593,1708726258208,-682.08,0.00029726,2]
[315004594,1708726258217,-3102.35,0.00029726,2]
[315004595,1708726258226,-500.0,0.00029726,2]
[315004596,1708726258235,-500.0,0.00029726,2]
[315004597,1708726258244,-500.0,0.00029726,2]
[315004598,1708726258254,-597.21,0.00029726,2]
[315004599,1708726258265,-611.16,0.00029726,2]
[315004600,1708726258274,-500.0,0.00029726,2]
[315004601,1708726258283,-493.28,0.00029726,2]
[315004602,1708726258291,-521.86,0.00029726,2]
[315004603,1708726258301,-500.0,0.00029726,2]
[315004604,1708726258310,-552.29,0.00029726,2]
[315004605,1708726258319,-584.56,0.00029726,2]
[315004606,1708726258328,-711.3,0.00029726,2]
[315004607,1708726258337,-685.81,0.00029726,2]
[315004608,1708726258346,-1524.14,0.00029726,2]
[315004609,1708726258355,-830.74,0.00029726,2]
[315004610,1708726258364,-522.81,0.00029726,2]
[315004611,1708726258373,-649.95,0.00029726,2]
[315004612,1708726258382,-607.97,0.00029726,2]
[315004613,1708726258391,-2019.37,0.00029726,2]
[315004614,1708726258401,-1721.96,0.00029726,2]
[315004615,1708726258411,-991.14,0.00029726,2]
[315004616,1708726258420,-2187.47,0.00029726,2]
[315004617,1708726258429,-231.23131968,0.00029848,17]
[315004618,1708726258438,-682.08,0.00029863,2]
[315004619,1708726258448,-3102.35,0.00029863,2]
[315004620,1708726258457,-500.0,0.00029863,2]
[315004621,1708726258466,-482.9,0.00029863,2]
[315004622,1708726258475,-500.0,0.00029863,2]
[315004623,1708726258484,-597.21,0.00029863,2]
[315004624,1708726258493,-500.0,0.00029863,2]
[315004625,1708726258502,-521.86,0.00029863,2]
[315004626,1708726258512,-500.0,0.00029863,2]
[315004627,1708726258521,-552.29,0.00029863,2]
[315004628,1708726258529,-584.56,0.00029863,2]
[315004629,1708726258538,-711.3,0.00029863,2]
[315004630,1708726258548,-685.81,0.00029863,2]
[315004631,1708726258557,-1524.14,0.00029863,2]
[315004632,1708726258567,-522.81,0.00029863,2]
[315004633,1708726258576,-830.74,0.00029863,2]
[315004634,1708726258585,-649.95,0.00029863,2]
[315004635,1708726258594,-607.97,0.00029863,2]
[315004636,1708726258603,-2019.37,0.00029863,2]
[315004637,1708726258613,-1721.96,0.00029863,2]
[315004638,1708726258622,-991.14,0.00029863,2]
[315004639,1708726258631,-2187.47,0.00029863,2]
[315004640,1708726258640,-473299.59414746,0.0002988,2]
[315004641,1708726258650,-33766.36939939,0.000299,2]
[315004642,1708726258659,-1679.97,0.00029935,2]
[315004643,1708726258669,-682.08,0.00029999,2]
[315004644,1708726258678,-3102.35,0.00029999,2]
[315004645,1708726258688,-500.0,0.00029999,2]
[315004646,1708726258696,-500.0,0.00029999,2]
[315004647,1708726258705,-597.21,0.00029999,2]
[315004648,1708726258715,-232.58,0.00029999,2]
[315004649,1708726258724,-521.86,0.00029999,2]
[315004650,1708726258734,-500.0,0.00029999,2]
[315004651,1708726258743,-552.29,0.00029999,2]
[315004652,1708726258752,-584.56,0.00029999,2]
[315004653,1708726258761,-711.3,0.00029999,2]
[315004654,1708726258770,-685.81,0.00029999,2]
[315004655,1708726258779,-1524.14,0.00029999,2]
[315004656,1708726258788,-522.81,0.00029999,2]
[315004657,1708726258797,-830.74,0.00029999,2]
[315004658,1708726258806,-649.95,0.00029999,2]
[315004659,1708726258815,-607.97,0.00029999,2]
[315004660,1708726258824,-2019.37,0.00029999,2]
[315004661,1708726258834,-1721.96,0.00029999,2]
[315004662,1708726258843,-991.14,0.00029999,2]
[315004663,1708726258852,-2187.47,0.00029999,2]
[315004664,1708726258861,-456.09176832,0.0003,2]
[315004665,1708726258871,-345.06249146,0.0003,2]
[315004666,1708726258880,-314.25366625,0.0003,2]
[315004667,1708726258889,-15223.65608156,0.0003,2]
[315004668,1708726258899,-1000.0,0.0003,2]
[315004669,1708726258907,-1122.56262266,0.000301,2]
[315004670,1708726258917,-1630.0,0.000301,2]
[315004671,1708726258926,-11769.09848048,0.00030135,2]
[315004672,1708726258935,-682.08,0.00030136,2]
[315004673,1708726258944,-3102.35,0.00030136,2]
[315004674,1708726258953,-500.0,0.00030136,2]
[315004675,1708726258962,-500.0,0.00030136,2]
[315004676,1708726258971,-597.21,0.00030136,2]
[315004677,1708726258980,-521.86,0.00030136,2]
[315004678,1708726258988,-500.0,0.00030136,2]
[315004679,1708726258997,-584.56,0.00030136,2]
[315004680,1708726259006,-711.3,0.00030136,2]
[315004681,1708726259017,-685.81,0.00030136,2]
[315004682,1708726259026,-1524.14,0.00030136,2]
[315004683,1708726259035,-522.81,0.00030136,2]
[315004684,1708726259044,-830.74,0.00030136,2]
[315004685,1708726259053,-649.95,0.00030136,2]
[315004686,1708726259063,-607.97,0.00030136,2]
[315004687,1708726259072,-2019.37,0.00030136,2]
[315004688,1708726259081,-1721.96,0.00030136,2]
[315004689,1708726259093,-991.14,0.00030136,2]
[315004690,1708726259103,-2187.47,0.00030136,2]
[315004691,1708726259112,-150.57,0.00030137,2]
[315004692,1708726259122,-201.70261338,0.00030137,2]
[315004693,1708726259131,-682.08,0.00030273,2]
[315004694,1708726259141,-3102.35,0.00030273,2]
[315004695,1708726259151,-500.0,0.00030273,2]
[315004696,1708726259160,-500.0,0.00030273,2]
[315004697,1708726259170,-597.21,0.00030273,2]
[315004698,1708726259179,-521.86,0.00030273,2]
[315004699,1708726259188,-500.0,0.00030273,2]
[315004700,1708726259198,-584.56,0.00030273,2]
[315004701,1708726259207,-711.3,0.00030273,2]
[315004702,1708726259217,-685.81,0.00030273,2]
[315004703,1708726259227,-1524.14,0.00030273,2]
[315004704,1708726259236,-522.81,0.00030273,2]
[315004705,1708726259245,-830.74,0.00030273,2]
[315004706,1708726259255,-649.95,0.00030273,2]
[315004707,1708726259265,-607.97,0.00030273,2]
[315004708,1708726259275,-2019.37,0.00030273,2]
[315004709,1708726259284,-1721.96,0.00030273,2]
[315004710,1708726259294,-991.14,0.00030273,2]
[315004711,1708726259303,-2187.47,0.00030273,2]
[315004712,1708726259313,-151.0,0.0003029,7]
[315004713,1708726259322,-151.0,0.0003029,7]
[315004714,1708726259331,-682.08,0.0003041,2]
[315004715,1708726259340,-3102.35,0.0003041,2]
[315004716,1708726259349,-319.12,0.0003041,2]
[315004717,1708726259358,-500.0,0.0003041,2]
[315004718,1708726259367,-597.21,0.0003041,2]
[315004719,1708726259376,-521.86,0.0003041,2]
[315004720,1708726259385,-500.0,0.0003041,2]
[315004721,1708726259394,-584.56,0.0003041,2]
[315004722,1708726259402,-711.3,0.0003041,2]
[315004723,1708726259412,-685.81,0.0003041,2]
[315004724,1708726259422,-1524.14,0.0003041,2]
[315004725,1708726259431,-522.81,0.0003041,2]
[315004726,1708726259441,-830.74,0.0003041,2]
[315004727,1708726259450,-649.95,0.0003041,2]
[315004728,1708726259460,-607.97,0.0003041,2]
[315004729,1708726259469,-2019.37,0.0003041,2]
[315004730,1708726259479,-1721.96,0.0003041,2]
[315004731,1708726259489,-991.14,0.0003041,2]
[315004732,1708726259498,-2187.47,0.0003041,2]
[315004733,1708726259507,-730.28,0.00030543,2]
[315004734,1708726259517,-682.28,0.00030547,2]
[315004735,1708726259526,-3102.53006354,0.00030547,2]
[315004736,1708726259535,-270.22,0.00030547,2]
[315004737,1708726259545,-597.35,0.00030547,2]
[315004738,1708726259554,-521.9,0.00030547,2]
[315004739,1708726259563,-202.16,0.00030547,2]
[315004740,1708726259573,-584.71,0.00030547,2]
[315004741,1708726259581,-711.45,0.00030547,2]
[315004742,1708726259591,-685.81,0.00030547,2]
[315004743,1708726259600,-1524.32,0.00030547,2]
[315004744,1708726259610,-522.99,0.00030547,2]
[315004745,1708726259619,-830.88,0.00030547,2]
[315004746,1708726259629,-650.16999999,0.00030547,2]
[315004747,1708726259638,-608.18,0.00030547,2]
[315004748,1708726259647,-2019.46,0.00030547,2]
[315004749,1708726259656,-1722.02,0.00030547,2]
[315004750,1708726259665,-991.3,0.00030547,2]
[315004751,1708726259828,-2187.47133753,0.00030547,2]
[315004752,1708726259839,-2644.0,0.000306,2]
[315004753,1708726259871,-8674.9237188,0.00030663,2]
[315004754,1708726259881,-3460.20510023,0.00030715,2]
[315004755,1708726259890,-16051.27634089,0.000309,2]
[315004756,1708726259899,-151.0,0.00030975,7]
[315004757,1708726259908,-151.0,0.00030975,7]
[315004758,1708726259917,-14607.7381104,0.00031,2]
[315004759,1708726259927,-4396.26985613,0.00031,2]
[315004760,1708726259936,-900.0,0.00031,3]
[315004761,1708726259945,-309.98,0.00031,2]
[315004762,1708726259955,-175.63,0.00031169,2]
[315004763,1708726259964,-8177.40106948,0.00031313,7]
[315004764,1708726259974,-4276.98948649,0.00031313,7]
[315004765,1708726259982,-150.57,0.00031355,2]
[315004766,1708726259991,-1860.00836589,0.00031427,5]
[315004767,1708726260001,-1500.0,0.000315,2]
[315004768,1708726260010,-150.0,0.0003152,2]
[315004769,1708726260020,-150.0,0.0003152,2]
[315004770,1708726260029,-150.0,0.0003152,2]
[315004771,1708726260039,-150.0,0.0003152,2]
[315004772,1708726260049,-150.0,0.0003152,2]
[315004773,1708726260059,-150.0,0.0003152,2]
[315004774,1708726260068,-150.0,0.0003152,2]
[315004775,1708726260078,-150.0,0.0003152,2]
[315004776,1708726260088,-151.0,0.00031575,7]
[315004777,1708726260102,-151.0,0.00031575,7]
[315004778,1708726260111,-151.0,0.00031575,7]
[315004779,1708726260121,-11769.09848048,0.00031575,3]
[315004780,1708726260131,-1679.97,0.00031579,2]
[315004781,1708726260140,-151.0,0.00031797,7]
[315004782,1708726260150,-151.0,0.00031797,7]
[315004783,1708726260159,-151.0,0.00031797,3]
[315004784,1708726260170,-150.0,0.00031799,2]
[315004785,1708726260179,-150.0,0.00031799,2]
[315004786,1708726260188,-74233.2898771,0.000318,3]
[315004787,1708726260198,-151.0,0.000318,7]
[315004788,1708726260208,-151.0,0.000318,7]
[315004789,1708726260218,-151.0,0.00031852,120]
[315004790,1708726260229,-3495.01572122,0.00031867,7]
[315004791,1708726260239,-123413.49416858,0.00031867,7]
[315004792,1708726260248,-29418.72802489,0.00031867,7]
[315004793,1708726260260,-151.0,0.00031867,7]
[315004794,1708726260270,-151.0,0.00031867,7]
[315004795,1708726260279,-151.0,0.00031867,2]
[315004796,1708726260289,-217.583966,0.00031867,7]
[315004797,1708726260300,-217.583966,0.00031867,7]
[315004798,1708726260309,-151.0,0.00031867,7]
[315004799,1708726260319,-151.0,0.00031867,7]
[315004800,1708726260328,-151.0,0.00031867,7]
[315004801,1708726260337,-151.0,0.00031867,7]
[315004802,1708726260347,-151.0,0.00031867,7]
[315004803,1708726260357,-151.0,0.00031867,7]
[315004804,1708726260366,-151.0,0.00031867,7]
[315004805,1708726260376,-151.0,0.00031867,7]
[315004806,1708726260385,-151.0,0.00031867,7]
[315004807,1708726260395,-151.0,0.00031867,7]
[315004808,1708726260404,-151.0,0.00031867,7]
[315004809,1708726260413,-151.0,0.00031867,7]
[315004810,1708726260422,-11698.12595873,0.00031867,7]
[315004811,1708726260432,-2924.53148968,0.00031867,7]
[315004812,1708726260442,-309.98,0.0003226,2]
[315004813,1708726260451,-240.0,0.00032273,2]
[315004814,1708726260459,-158.196154,0.0003243,2]
[315004815,1708726260468,-158.84317,0.0003243,2]
[315004816,1708726260479,-155.007164,0.0003243,2]
[315004817,1708726260489,-158.535125,0.0003243,2]
[315004818,1708726260498,-156.90607,0.0003243,2]
[315004819,1708726260508,-158.196154,0.0003243,2]
[315004820,1708726260517,-407.56988493,0.00032499,2]
[315004821,1708726260527,-315.70557956,0.00032499,2]
[315004822,1708726260536,-231.23131968,0.00032499,20]
[315004823,1708726260546,-774.75393851,0.00032499,2]
[315004824,1708726260555,-7915.48086133,0.00032499,2]
[315004825,1708726260565,-1477.29494601,0.00032499,2]
[315004826,1708726260574,-151.0,0.00032502,30]
[315004827,1708726260583,-150.57,0.00032572,2]
[315004828,1708726260592,-8674.9237188,0.00032596,2]
[315004829,1708726260601,-3460.20510023,0.00032662,2]
[315004830,1708726260610,-253.25018514,0.000327,2]
[315004831,1708726260619,-253.25018495,0.000327,2]
[315004832,1708726260629,-253.25018495,0.000327,2]
[315004833,1708726260638,-253.25018495,0.000327,2]
[315004834,1708726260647,-253.25018495,0.000327,2]
[315004835,1708726260656,-253.25018495,0.000327,2]
[315004836,1708726260665,-253.25018495,0.000327,2]
[315004837,1708726260675,-253.25018495,0.000327,2]
[315004838,1708726260684,-253.25018495,0.000327,2]
[315004839,1708726260694,-253.25018495,0.000327,2]
[315004840,1708726260703,-253.25018495,0.000327,2]
[315004841,1708726260713,-253.25018495,0.000327,2]
[315004842,1708726260725,-253.25018495,0.000327,2]
[315004843,1708726260734,-253.25018495,0.000327,2]
[315004844,1708726260743,-253.25018495,0.000327,2]
[315004845,1708726260753,-253.25018495,0.000327,2]
[315004846,1708726260765,-253.25018495,0.000327,2]
[315004847,1708726260776,-253.25018495,0.000327,2]
[315004848,1708726260785,-253.25018495,0.000327,2]
[315004849,1708726260795,-253.25018495,0.000327,2]
[315004850,1708726260805,-730.28,0.00032807,2]
[315004851,1708726260815,-196.88,0.00032826,2]
[315004852,1708726260825,-150.1,0.00032877,2]
[315004853,1708726260834,-190.48,0.00032877,2]
[315004854,1708726260843,-250.0,0.00032877,2]
[315004855,1708726260852,-168.75,0.00032877,2]
[315004856,1708726260862,-150.0,0.00032877,2]
[315004857,1708726260872,-8000.0,0.000329,2]
[315004858,1708726260882,-158.535125,0.00032971,2]
[315004859,1708726260891,-1527.12122368,0.00033,2]
[315004860,1708726260900,-950.0,0.00033,3]
[315004861,1708726260910,-168.0,0.00033,2]
[315004862,1708726260920,-359.0,0.00033,2]
[315004863,1708726260930,-165.0,0.00033,2]
[315004864,1708726260940,-11769.09848048,0.00033016,5]
[315004865,1708726260950,-760.0,0.00033016,2]
[315004866,1708726260960,-359.0,0.00033151,2]
[315004867,1708726260970,-151.0,0.00033166,7]
[315004868,1708726260980,-156.0,0.00033421,2]
[315004869,1708726260990,-1257.51,0.000335,2]
[315004870,1708726261000,-1257.51,0.000335,2]
[315004871,1708726261010,-1257.51,0.000335,2]
[315004872,1708726261020,-1257.51,0.000335,2]
[315004873,1708726261030,-1257.51,0.000335,2]
[315004874,1708726261040,-1257.51,0.000335,2]
[315004875,1708726261049,-1257.51,0.000335,2]
[315004876,1708726261060,-1257.51,0.000335,2]
[315004877,1708726261069,-1257.51,0.000335,2]
[315004878,1708726261079,-1257.51,0.000335,2]
[315004879,1708726261089,-1257.51,0.000335,2]
[315004880,1708726261103,-1257.51,0.000335,2]
[315004881,1708726261113,-1257.51,0.000335,2]
[315004882,1708726261123,-1257.51,0.000335,2]
[315004883,1708726261133,-1257.51,0.000335,2]
[315004884,1708726261144,-1257.51,0.000335,2]
[315004885,1708726261153,-1257.51,0.000335,2]
[315004886,1708726261162,-1257.51,0.000335,2]
[315004887,1708726261174,-1257.51,0.000335,2]
[315004888,1708726261183,-1257.51,0.000335,2]
[315004889,1708726261193,-158.535125,0.00033511,2]
[315004890,1708726261202,-167.0,0.00033519,5]
[315004891,1708726261212,-309.98,0.0003352,2]
[315004892,1708726261221,-1860.00836589,0.00033551,6]
[315004893,1708726261232,-150.0,0.00033742,2]
[315004894,1708726261242,-150.57,0.0003379,2]
[315004895,1708726261251,-151.0,0.00033842,4]
[315004896,1708726261262,-153.11231272,0.000339,2]
[315004897,1708726261272,-153.11231265,0.000339,2]
[315004898,1708726261281,-153.11231265,0.000339,2]
[315004899,1708726261291,-153.11231265,0.000339,2]
[315004900,1708726261300,-153.11231265,0.000339,2]
[315004901,1708726261309,-153.11231265,0.000339,2]
[315004902,1708726261319,-157.51738774,0.0003392,7]
[315004903,1708726261328,-150.611562,0.00033959,7]
[315004904,1708726261337,-155.76031538,0.00034038,7]
[315004905,1708726261347,-158.535125,0.00034052,2]
[315004906,1708726261356,-155.007164,0.00034052,2]
[315004907,1708726261366,-158.196154,0.00034052,2]
[315004908,1708726261376,-155.57626885,0.00034056,7]
[315004909,1708726261385,-154.20563152,0.00034075,7]
[315004910,1708726261395,-157.51738774,0.00034119,7]
[315004911,1708726261404,-159.39088986,0.00034151,7]
[315004912,1708726261414,-157.51738774,0.00034184,7]
[315004913,1708726261423,-8000.0,0.000342,2]
[315004914,1708726261432,-158.44336474,0.00034219,7]
[315004915,1708726261441,-150.0,0.00034273,7]
[315004916,1708726261451,-168.75267509,0.00034277,7]
[315004917,1708726261460,-160.49481862,0.00034324,7]
[315004918,1708726261468,-154.20563152,0.00034389,7]
[315004919,1708726261479,-153.11231265,0.00034455,2]
[315004920,1708726261488,-11769.09848048,0.00034457,6]
[315004921,1708726261497,-154.20563152,0.0003446,7]
[315004922,1708726261506,-154.20563152,0.00034507,7]
[315004923,1708726261515,-16679.053041,0.0003452,2]
[315004924,1708726261524,-889.362365,0.0003452,2]
[315004925,1708726261534,-9353.35399,0.0003452,2]
[315004926,1708726261543,-350.614009,0.0003452,2]
[315004927,1708726261552,-7638.198355,0.0003452,2]
[315004928,1708726261561,-6119.73,0.00034521,2]
[315004929,1708726261570,-168.0,0.00034521,2]
[315004930,1708726261579,-359.0,0.00034521,2]
[315004931,1708726261588,-165.0,0.00034521,2]
[315004932,1708726261596,-8674.9237188,0.00034529,2]
[315004933,1708726261606,-151.0,0.00034533,2]
[315004934,1708726261615,-203.0,0.0003454,2]
[315004935,1708726261625,-156.3052614,0.00034561,7]
[315004936,1708726261634,-150.0,0.00034607,2]
[315004937,1708726261643,-3460.20510023,0.00034608,2]
[315004938,1708726261652,-150.611562,0.00034677,7]
[315004939,1708726261662,-150.611562,0.00034767,7]
[315004940,1708726261671,-309.98,0.0003478,2]
[315004941,1708726261680,-167.02514081,0.00034785,7]
[315004942,1708726261690,-156.0,0.0003479,2]
[315004943,1708726261700,-25018.579562,0.00034794,2]
[315004944,1708726261709,-1334.043547,0.00034794,2]
[315004945,1708726261719,-14030.030985,0.00034794,2]
[315004946,1708726261730,-525.921014,0.00034794,2]
[315004947,1708726261740,-11457.297533,0.00034794,2]
[315004948,1708726261751,-1257.51,0.000349,2]
[315004949,1708726261761,-1257.51,0.000349,2]
[315004950,1708726261770,-1257.51,0.000349,2]
[315004951,1708726261780,-1257.51,0.000349,2]
[315004952,1708726261789,-1257.51,0.000349,2]
[315004953,1708726261798,-1257.51,0.000349,2]
[315004954,1708726261809,-1257.51,0.000349,2]
[315004955,1708726261820,-1257.51,0.000349,2]
[315004956,1708726261830,-1257.51,0.000349,2]
[315004957,1708726261839,-1257.51,0.000349,2]
[315004958,1708726261849,-1257.51,0.000349,2]
[315004959,1708726261858,-1257.51,0.000349,2]
[315004960,1708726261867,-1257.51,0.000349,2]
[315004961,1708726261876,-1257.51,0.000349,2]
[315004962,1708726261886,-1257.51,0.000349,2]
[315004963,1708726261895,-1257.51,0.000349,2]
[315004964,1708726261904,-1257.51,0.000349,2]
[315004965,1708726261914,-1257.51,0.000349,2]
[315004966,1708726261923,-1257.51,0.000349,2]
[315004967,1708726261932,-1257.51,0.000349,2]
[315004968,1708726261941,-4773.75547165,0.000349,2]
[315004969,1708726261951,-4773.75547162,0.000349,2]
[315004970,1708726261960,-4773.75547162,0.000349,2]
[315004971,1708726261969,-4773.75547162,0.000349,2]
[315004972,1708726261979,-4773.75547162,0.000349,2]
[315004973,1708726261990,-4773.75547162,0.000349,2]
[315004974,1708726262000,-4773.75547162,0.000349,2]
[315004975,1708726262009,-4773.75547162,0.000349,2]
[315004976,1708726262019,-663.53,0.0003493,2]
[315004977,1708726262028,-33358.106083,0.00034931,2]
[315004978,1708726262038,-1778.72473,0.00034931,2]
[315004979,1708726262048,-18706.70798,0.00034931,2]
[315004980,1708726262057,-701.228018,0.00034931,2]
[315004981,1708726262067,-15276.39671,0.00034931,2]
[315004982,1708726262076,-154.20563152,0.00034978,7]
[315004983,1708726262086,-169.46404024,0.0003499,2]
[315004984,1708726262098,-229.20433756,0.00035,7]
[315004985,1708726262107,-499.999998,0.00035,2]
[315004986,1708726262117,-586.90975074,0.00035,4]
[315004987,1708726262128,-1337.28242052,0.00035,30]
[315004988,1708726262138,-2217.17203199,0.00035,7]
[315004989,1708726262148,-1023.89729926,0.00035,2]
[315004990,1708726262158,-155.20925086,0.00035,4]
[315004991,1708726262169,-23433.2341215,0.00035,2]
[315004992,1708726262179,-23433.2341215,0.00035,2]
[315004993,1708726262189,-184.9172368,0.00035,2]
[315004994,1708726262198,-150.57,0.00035008,2]
[315004995,1708726262208,-150.611562,0.00035029,7]
[315004996,1708726262217,-159.39088986,0.00035067,7]
[315004997,1708726262227,-41697.632604,0.00035068,2]